fUST/lending_fUST_20260308
["ID","MTS","AMOUNT","RATE_DAILY","PERIOD"]
[407959861,1772933439595,-790.59629303,5e-05,2]
[407959862,1772933439605,-790.59629303,5e-05,2]
[407959863,1772933439614,-790.59629303,5e-05,2]
[407959864,1772933439623,-790.59629303,5e-05,2]
[407959865,1772933439633,-790.59629303,5e-05,2]
[407959866,1772933439642,-790.59629303,5e-05,2]
[407959867,1772933439652,-790.59629303,5e-05,2]
[407959868,1772933439661,-790.59629303,5e-05,2]
[407959869,1772933439671,-790.59629303,5e-05,2]
[407959870,1772933439680,-790.59629303,5e-05,2]
[407959871,1772933439689,-790.59629303,5e-05,2]
[407959872,1772933439698,-790.59629303,5e-05,2]
[407959873,1772933439710,-790.59629303,5e-05,2]
[407959874,1772933439719,-790.59629303,5e-05,2]
[407959875,1772933439728,-790.59629303,5e-05,2]
[407959876,1772933439738,-790.59629303,5e-05,2]
[407959877,1772933439747,-790.59629303,5e-05,2]
[407959878,1772933439758,-790.59629303,5e-05,2]
[407959879,1772933439769,-790.59629303,5e-05,2]
[407959880,1772933439779,-790.59629303,5e-05,2]
[407959881,1772933439790,-790.59629303,5e-05,2]
[407959882,1772933439800,-790.59629303,5e-05,2]
[407959883,1772933439810,-790.59629303,5e-05,2]
[407959884,1772933439821,-790.59629303,5e-05,2]
[407959885,1772933439832,-790.59629303,5e-05,2]
[407959886,1772933439843,-790.59629303,5e-05,2]
[407959887,1772933439852,-790.59629303,5e-05,2]
[407959888,1772933439863,-790.59629303,5e-05,2]
[407959889,1772933439872,-790.59629303,5e-05,2]
[407959890,1772933439884,-790.59629303,5e-05,2]
[407959891,1772933439895,-790.59629303,5e-05,2]
[407959892,1772933439905,-790.59629303,5e-05,2]
[407959893,1772933439915,-790.59629303,5e-05,2]
[407959894,1772933439924,-790.59629303,5e-05,2]
[407959895,1772933439944,-790.59629303,5e-05,2]
[407959896,1772933439954,-790.59629303,5e-05,2]
[407959897,1772933439964,-790.59629303,5e-05,2]
[407959898,1772933439973,-790.59629303,5e-05,2]
[407959899,1772933439983,-790.59629303,5e-05,2]
[407959900,1772933439992,-790.59629303,5e-05,2]
[407959901,1772933440002,-790.59629303,5e-05,2]
[407959902,1772933440011,-656.11401433,5e-05,2]
[407959903,1772933440020,-656.11401433,5e-05,2]
[407959904,1772933440029,-656.11401433,5e-05,2]
[407959905,1772933440038,-656.11401433,5e-05,2]
[407959906,1772933440048,-656.11401433,5e-05,2]
[407959907,1772933440058,-656.11401433,5e-05,2]
[407959908,1772933440067,-656.11401433,5e-05,2]
[407959909,1772933440076,-656.11401433,5e-05,2]
[407959910,1772933440085,-656.11401433,5e-05,2]
[407959911,1772933440094,-656.11401433,5e-05,2]
[407959912,1772933440103,-656.11401433,5e-05,2]
[407959913,1772933440115,-656.11401433,5e-05,2]
[407959914,1772933440124,-656.11401433,5e-05,2]
[407959915,1772933440133,-656.11401433,5e-05,2]
[407959916,1772933440143,-656.11401433,5e-05,2]
[407959917,1772933440152,-656.11401433,5e-05,2]
[407959918,1772933440162,-656.11401433,5e-05,2]
[407959919,1772933440171,-656.11401433,5e-05,2]
[407959920,1772933440182,-656.11401433,5e-05,2]
[407959921,1772933440191,-656.11401433,5e-05,2]
[407959922,1772933440200,-656.11401433,5e-05,2]
[407959923,1772933440211,-656.11401433,5e-05,2]
[407959924,1772933440219,-656.11401433,5e-05,2]
[407959925,1772933440229,-656.11401433,5e-05,2]
[407959926,1772933440238,-656.11401433,5e-05,2]
[407959927,1772933440250,-656.11401433,5e-05,2]
[407959928,1772933440259,-656.11401433,5e-05,2]
[407959929,1772933440267,-656.11401433,5e-05,2]
[407959930,1772933440276,-656.11401433,5e-05,2]
[407959931,1772933440285,-656.11401433,5e-05,2]
[407959932,1772933440295,-656.11401433,5e-05,2]
[407959933,1772933440304,-656.11401433,5e-05,2]
[407959934,1772933440314,-656.11401433,5e-05,2]
[407959935,1772933440323,-656.11401433,5e-05,2]
[407959936,1772933440333,-656.11401433,5e-05,2]
[407959937,1772933440342,-656.11401433,5e-05,2]
[407959938,1772933440352,-656.11401433,5e-05,2]
[407959940,1772933440364,-656.11401433,5e-05,2]
[407959942,1772933440374,-656.11401433,5e-05,2]
[407959943,1772933440383,-656.11401433,5e-05,2]
[407959944,1772933440392,-656.11401433,5e-05,2]
[407959945,1772933440402,-656.11401433,5e-05,2]
[407959946,1772933440411,-656.11401433,5e-05,2]
[407959947,1772933440420,-656.11401433,5e-05,2]
[407959948,1772933440430,-656.11401433,5e-05,2]
[407959949,1772933440439,-656.11401433,5e-05,2]
[407959950,1772933440448,-656.11401433,5e-05,2]
[407959951,1772933440457,-656.11401433,5e-05,2]
[407959952,1772933440466,-656.11401433,5e-05,2]
[407959953,1772933440476,-656.11401433,5e-05,2]
[407959954,1772933440485,-656.11401433,5e-05,2]
[407959955,1772933440494,-656.11401433,5e-05,2]
[407959956,1772933440503,-656.11401433,5e-05,2]
[407959957,1772933440512,-656.11401433,5e-05,2]
[407959958,1772933440520,-656.11401433,5e-05,2]
[407959959,1772933440530,-656.11401433,5e-05,2]
[407959960,1772933440539,-656.11401433,5e-05,2]
[407959961,1772933440547,-656.11401433,5e-05,2]
[407959962,1772933440556,-656.11401433,5e-05,2]
[407959963,1772933440565,-656.11401433,5e-05,2]
[407959964,1772933440574,-656.11401433,5e-05,2]
[407959965,1772933440583,-656.11401433,5e-05,2]
[407959966,1772933440592,-656.11401433,5e-05,2]
[407959967,1772933440601,-656.11401433,5e-05,2]
[407959968,1772933440611,-656.11401433,5e-05,2]
[407959969,1772933440619,-656.11401433,5e-05,2]
[407959970,1772933440628,-656.11401433,5e-05,2]
[407959971,1772933440637,-656.11401433,5e-05,2]
[407959972,1772933440646,-656.11401433,5e-05,2]
[407959973,1772933440655,-656.11401433,5e-05,2]
[407959974,1772933440664,-656.11401433,5e-05,2]
[407959975,1772933440673,-656.11401433,5e-05,2]
[407959976,1772933440683,-656.11401433,5e-05,2]
[407959977,1772933440691,-776.22181499,5e-05,2]
[407959978,1772933440700,-776.22181499,5e-05,2]
[407959979,1772933440710,-776.22181499,5e-05,2]
[407959980,1772933440722,-776.22181499,5e-05,2]
[407959981,1772933440731,-776.22181499,5e-05,2]
[407959982,1772933440740,-776.22181499,5e-05,2]
[407959983,1772933440749,-776.22181499,5e-05,2]
[407959984,1772933440758,-776.22181499,5e-05,2]
[407959985,1772933440767,-776.22181499,5e-05,2]
[407959986,1772933440776,-776.22181499,5e-05,2]
[407959987,1772933440789,-776.22181499,5e-05,2]
[407959988,1772933440798,-776.22181499,5e-05,2]
[407959989,1772933440807,-776.22181499,5e-05,2]
[407959990,1772933440816,-776.22181499,5e-05,2]
[407959991,1772933440825,-776.22181499,5e-05,2]
[407959992,1772933440835,-776.22181499,5e-05,2]
[407959993,1772933440843,-776.22181499,5e-05,2]
[407959994,1772933440852,-776.22181499,5e-05,2]
[407959995,1772933440863,-776.22181499,5e-05,2]
[407959996,1772933440872,-776.22181499,5e-05,2]
[407959997,1772933440881,-776.22181499,5e-05,2]
[407959998,1772933440890,-776.22181499,5e-05,2]
[407959999,1772933440899,-776.22181499,5e-05,2]
[407960000,1772933440908,-776.22181499,5e-05,2]
[407960001,1772933440917,-776.22181499,5e-05,2]
[407960002,1772933440926,-776.22181499,5e-05,2]
[407960003,1772933440936,-776.22181499,5e-05,2]
[407960004,1772933440945,-776.22181499,5e-05,2]
[407960005,1772933440954,-776.22181499,5e-05,2]
[407960006,1772933440963,-776.22181499,5e-05,2]
[407960007,1772933440972,-776.22181499,5e-05,2]
[407960008,1772933440981,-776.22181499,5e-05,2]
[407960009,1772933440990,-578.20924308,5.094e-05,2]
[407960010,1772933440999,-2312.83697232,5.094e-05,2]
[407960011,1772933441008,-264.02412862,5.181e-05,2]
[407960012,1772933441018,-1000.0,5.359e-05,2]
[407960013,1772933441027,-395.65,5.379e-05,2]
[407960014,1772933441036,-300.0,5.479e-05,2]
[407960015,1772933441045,-3483.2757867,5.479e-05,2]
[407960016,1772933441054,-500.0,5.603e-05,2]
[407960017,1772933441063,-599.60298507,5.642e-05,2]
[407960018,1772933441071,-2398.4119403,5.642e-05,2]
[407960019,1772933441080,-1000.0,5.894e-05,2]
[407960020,1772933441089,-244.0,5.894e-05,2]
[407960021,1772933441098,-160.0,5.956e-05,2]
[407960022,1772933441107,-321.49511999,6.19e-05,2]
[407960023,1772933441116,-2487.15318209,6.19e-05,2]
[407960024,1772933441126,-1000.0,6.4e-05,2]
[407960025,1772933441135,-1000.0,6.4e-05,2]
[407960026,1772933441144,-1000.0,6.4e-05,2]
[407960027,1772933441153,-1000.0,6.4e-05,2]
[407960028,1772933441162,-1000.0,6.484e-05,2]
[407960029,1772933441171,-492.0,6.484e-05,2]
[407960030,1772933441181,-160.0,6.578e-05,3]
[407960031,1772933441191,-304.71309974,6.578e-05,5]
[407960032,1772933441203,-2579.17784983,6.738e-05,2]
[407960033,1772933441213,-1391.0,6.843e-05,2]
[407960034,1772933441222,-2190.0,6.843e-05,2]
[407960035,1772933441231,-639.0,6.843e-05,2]
[407960036,1772933441240,-732.0,6.843e-05,2]
[407960037,1772933441249,-434.0,6.843e-05,2]
[407960038,1772933441258,-434.0,6.843e-05,2]
[407960039,1772933441529,-14549.94808857,6.849e-05,2]
[407960040,1772933441539,-12225.99804664,6.849e-05,2]
[407960041,1772933441548,-10104.13061706,6.849e-05,2]
[407960042,1772933441557,-8184.34579982,6.849e-05,2]
[407960043,1772933441566,-6466.64359492,6.849e-05,2]
[407960044,1772933441575,-4951.02400236,6.849e-05,2]
[407960045,1772933441584,-3637.48702214,6.849e-05,2]
[407960046,1772933441593,-2526.03265427,6.849e-05,2]
[407960047,1772933441602,-1616.66089873,6.849e-05,2]
[407960048,1772933441612,-909.37175554,6.849e-05,2]
[407960049,1772933441622,-505.20653085,6.849e-05,2]
[407960050,1772933441632,-9696.23607081,6.849e-05,5]
[407960051,1772933441643,-7423.68074172,6.849e-05,5]
[407960052,1772933441654,-5454.13278983,6.849e-05,5]
[407960053,1772933441664,-3787.59221516,6.849e-05,5]
[407960054,1772933441675,-2424.0590177,6.849e-05,5]
[407960055,1772933441684,-1363.53319746,6.849e-05,5]
[407960056,1772933441696,-606.01475443,6.849e-05,5]
[407960057,1772933441706,-151.35218492,6.849e-05,5]
[407960058,1772933441720,-7633.83619401,6.849e-05,2]
[407960059,1772933441730,-5844.65583604,6.849e-05,2]
[407960060,1772933441740,-4294.03285913,6.849e-05,2]
[407960061,1772933441749,-2981.96726328,6.849e-05,2]
[407960062,1772933441760,-1908.4590485,6.849e-05,2]
[407960063,1772933441770,-1073.50821478,6.849e-05,2]
[407960064,1772933441779,-596.39345266,6.849e-05,2]
[407960065,1772933441788,-5204.8883141,6.849e-05,5]
[407960066,1772933441797,-3331.12852102,6.849e-05,5]
[407960067,1772933441807,-1873.75979308,6.849e-05,5]
[407960068,1772933441816,-832.78213026,6.849e-05,5]
[407960069,1772933441826,-207.98733703,6.849e-05,5]
[407960070,1772933441836,-9237.65072493,7.035e-05,2]
[407960071,1772933441845,-1000.0,7.132e-05,2]
[407960072,1772933441855,-791.0,7.132e-05,2]
[407960073,1772933441865,-304.2989957,7.181e-05,2]
[407960074,1772933441875,-2674.60743027,7.286e-05,2]
[407960075,1772933441887,-2773.56790519,7.834e-05,2]
[407960076,1772933441897,-1000.0,7.845e-05,2]
[407960077,1772933441906,-1000.0,7.845e-05,2]
[407960078,1772933441916,-160.0,8e-05,2]
[407960079,1772933441927,-160.0,8e-05,2]
[407960080,1772933441936,-1824.72064308,8.169e-05,2]
[407960081,1772933441945,-160.0,8.2e-05,2]
[407960082,1772933441956,-160.0,8.2e-05,2]
[407960083,1772933441966,-151.4207714,8.219e-05,2]
[407960084,1772933441975,-155.40074411,8.219e-05,2]
[407960085,1772933441987,-151.37638117,8.219e-05,2]
[407960086,1772933441999,-500.0,8.219e-05,2]
[407960087,1772933442009,-500.0,8.219e-05,2]
[407960088,1772933442021,-500.0,8.219e-05,2]
[407960089,1772933442032,-250.0,8.219e-05,2]
[407960090,1772933442042,-500.0,8.219e-05,2]
[407960091,1772933442051,-500.0,8.219e-05,2]
[407960092,1772933442060,-185.4062112,8.219e-05,2]
[407960093,1772933442070,-154.48464515,8.219e-05,2]
[407960094,1772933442079,-500.0,8.219e-05,2]
[407960095,1772933442089,-150.25852917,8.219e-05,2]
[407960096,1772933442098,-194.6591236,8.219e-05,2]
[407960097,1772933442108,-231.31294402,8.219e-05,2]
[407960098,1772933442117,-214.78794242,8.219e-05,2]
[407960099,1772933442127,-500.0,8.219e-05,2]
[407960100,1772933442136,-500.0,8.219e-05,2]
[407960101,1772933442145,-500.0,8.219e-05,2]
[407960102,1772933442156,-500.0,8.219e-05,2]
[407960103,1772933442165,-500.0,8.219e-05,2]
[407960104,1772933442176,-166.41551598,8.219e-05,2]
[407960105,1772933442186,-500.0,8.219e-05,2]
[407960106,1772933442195,-500.0,8.219e-05,2]
[407960107,1772933442204,-500.0,8.219e-05,2]
[407960108,1772933442214,-500.0,8.219e-05,2]
[407960109,1772933442224,-500.0,8.219e-05,2]
[407960110,1772933442233,-500.0,8.219e-05,2]
[407960111,1772933442242,-500.0,8.274e-05,2]
[407960112,1772933442252,-500.0,8.274e-05,2]
[407960113,1772933442261,-500.0,8.274e-05,2]
[407960114,1772933442272,-500.0,8.274e-05,2]
[407960115,1772933442282,-500.0,8.274e-05,2]
[407960116,1772933442292,-200.0,8.274e-05,2]
[407960117,1772933442301,-500.0,8.274e-05,2]
[407960118,1772933442311,-500.0,8.274e-05,2]
[407960119,1772933442320,-500.0,8.274e-05,2]
[407960120,1772933442329,-500.0,8.329e-05,2]
[407960121,1772933442338,-500.0,8.329e-05,2]
[407960122,1772933442348,-500.0,8.329e-05,2]
[407960123,1772933442358,-500.0,8.329e-05,2]
[407960124,1772933442367,-250.0,8.329e-05,2]
[407960125,1772933442376,-500.0,8.329e-05,2]
[407960126,1772933442385,-500.0,8.329e-05,2]
[407960127,1772933442395,-500.0,8.329e-05,2]
[407960128,1772933442405,-500.0,8.329e-05,2]
[407960129,1772933442414,-200.0,8.329e-05,2]
[407960130,1772933442422,-2876.18991768,8.382e-05,2]
[407960131,1772933442433,-500.0,8.383e-05,2]
[407960132,1772933442443,-500.0,8.383e-05,2]
[407960133,1772933442452,-500.0,8.383e-05,2]
[407960134,1772933442462,-500.0,8.383e-05,2]
[407960135,1772933442472,-500.0,8.383e-05,2]
[407960136,1772933442482,-500.0,8.383e-05,2]
[407960137,1772933442493,-338.21958631,8.383e-05,2]
[407960138,1772933442503,-502.71577406,8.383e-05,2]
[407960139,1772933442512,-500.0,8.438e-05,2]
[407960140,1772933442521,-500.0,8.438e-05,2]
[407960141,1772933442530,-500.0,8.438e-05,2]
[407960142,1772933442539,-500.0,8.438e-05,2]
[407960143,1772933442548,-500.0,8.438e-05,2]
[407960144,1772933442557,-241.40127307,8.438e-05,2]
[407960145,1772933442566,-159.90490311,8.438e-05,2]
[407960146,1772933442575,-500.0,8.438e-05,2]
[407960147,1772933442584,-500.0,8.493e-05,2]
[407960148,1772933442593,-500.0,8.493e-05,2]
[407960149,1772933442602,-500.0,8.493e-05,2]
[407960150,1772933442612,-500.0,8.493e-05,2]
[407960151,1772933442621,-500.0,8.493e-05,2]
[407960152,1772933442630,-500.0,8.493e-05,2]
[407960153,1772933442639,-153.37259684,8.493e-05,2]
[407960154,1772933442648,-500.0,8.493e-05,2]
[407960155,1772933442657,-244.08322859,8.548e-05,2]
[407960156,1772933442666,-500.0,8.548e-05,2]
[407960157,1772933442675,-512.08351367,8.548e-05,2]
[407960158,1772933442685,-500.0,8.548e-05,2]
[407960159,1772933442694,-500.0,8.548e-05,2]
[407960160,1772933442703,-500.0,8.548e-05,2]
[407960161,1772933442715,-160.0,8.6e-05,2]
[407960162,1772933442723,-160.0,8.6e-05,2]
[407960163,1772933442732,-500.0,8.603e-05,2]
[407960164,1772933442741,-500.0,8.603e-05,2]
[407960165,1772933442751,-500.0,8.603e-05,2]
[407960166,1772933442761,-500.0,8.603e-05,2]
[407960167,1772933442770,-1000.0,8.63e-05,2]
[407960168,1772933442779,-1000.0,8.63e-05,2]
[407960169,1772933442789,-579.0,8.63e-05,2]
[407960170,1772933442798,-500.0,8.657e-05,2]
[407960171,1772933442807,-500.0,8.657e-05,2]
[407960172,1772933442816,-500.0,8.657e-05,2]
[407960173,1772933442825,-800.0,8.677e-05,2]
[407960174,1772933442834,-415.93522163,8.712e-05,2]
[407960175,1772933442843,-500.0,8.712e-05,2]
[407960176,1772933442852,-500.0,8.712e-05,2]
[407960177,1772933442862,-192.74033012,8.741e-05,2]
[407960178,1772933442871,-500.0,8.767e-05,2]
[407960179,1772933442880,-500.0,8.767e-05,2]
[407960180,1772933442889,-500.0,8.767e-05,2]
[407960181,1772933442898,-160.0,8.8e-05,2]
[407960182,1772933442908,-160.0,8.8e-05,2]
[407960183,1772933442917,-500.0,8.822e-05,2]
[407960184,1772933442928,-500.0,8.822e-05,2]
[407960185,1772933442937,-500.0,8.877e-05,2]
[407960186,1772933442946,-374.23461839,8.877e-05,2]
[407960187,1772933442955,-2982.60894464,8.93e-05,2]
[407960188,1772933442964,-500.0,8.931e-05,2]
[407960189,1772933442973,-260.0,8.986e-05,2]
[407960190,1772933442982,-344.57386277,9.181e-05,2]
[407960191,1772933442991,-3092.96547559,9.478e-05,2]
[407960192,1772933443000,-1000.0,9.493e-05,2]
[407960193,1772933443009,-1000.0,9.493e-05,2]
[407960194,1772933443019,-1391.0,9.843e-05,2]
[407960195,1772933443027,-1209.369,9.843e-05,2]
[407960196,1772933443036,-639.0,9.843e-05,2]
[407960197,1772933443045,-732.0,9.843e-05,2]
[407960198,1772933443054,-169.361,9.843e-05,2]
[407960199,1772933443063,-434.0,9.843e-05,2]
[407960200,1772933443072,-500.0,0.0001,2]
[407960201,1772933443082,-500.0,0.0001,2]
[407960202,1772933443091,-690.68349548,0.0001,2]
[407960203,1772933443099,-500.0,0.0001,2]
[407960204,1772933443109,-500.0,0.0001,2]
[407960205,1772933443118,-500.0,0.0001,2]
[407960206,1772933443127,-500.0,0.0001,2]
[407960209,1772933443136,-500.0,0.0001,2]
[407960212,1772933443145,-500.0,0.0001,2]
[407960214,1772933443153,-500.0,0.0001,2]
[407960215,1772933443163,-500.0,0.0001,2]
[407960216,1772933443172,-500.0,0.0001,2]
[407960217,1772933443181,-500.0,0.0001,2]
[407960219,1772933443190,-500.0,0.0001,2]
[407960221,1772933443199,-500.0,0.0001,2]
[407960223,1772933443208,-500.0,0.0001,2]
[407960225,1772933443217,-500.0,0.0001,2]
[407960227,1772933443226,-500.0,0.0001,2]
[407960228,1772933443235,-500.0,0.0001,2]
[407960229,1772933443244,-500.0,0.0001,2]
[407960230,1772933443254,-500.0,0.0001,2]
[407960231,1772933443264,-608.35842076,0.0001,2]
[407960232,1772933443274,-500.0,0.0001,2]
[407960233,1772933443283,-627.27027997,0.0001,2]
[407960234,1772933443292,-500.0,0.0001,2]
[407960235,1772933443301,-1000.0,0.0001,2]
[407960236,1772933443310,-1000.0,0.0001,2]
[407960237,1772933443319,-1000.0,0.0001,2]
[407960238,1772933443328,-1000.0,0.0001,2]
[407960239,1772933443337,-1000.0,0.0001,2]
[407960240,1772933443346,-1000.0,0.0001,2]
[407960241,1772933443355,-1000.0,0.0001,2]
[407960242,1772933443365,-1000.0,0.0001,2]
[407960243,1772933443375,-1000.0,0.0001,2]
[407960244,1772933443384,-1000.0,0.0001,2]
[407960245,1772933443393,-1000.0,0.0001,2]
[407960247,1772933443403,-1000.0,0.0001,2]
[407960248,1772933443412,-1000.0,0.0001,2]
[407960249,1772933443421,-1902.17527271,0.0001,2]
[407960250,1772933443431,-1183.72561049,0.0001,2]
[407960251,1772933443440,-501094.88749388,0.0001,2]
[407960252,1772933443676,-25501.01048428,9.9e-05,2]
[407960269,1772933446488,-444.56964452,9.8e-05,2]
[407960270,1772933446498,-427.95114839,9.801e-05,2]
[407960271,1772933446510,-5192.99218047,9.9e-05,2]
[407960272,1772933446824,-337.2,9.9e-05,2]
[407960273,1772933446836,-7386.93076629,9.9e-05,2]
[407960274,1772933446847,-927.19930424,9.9e-05,2]
[407960396,1772934638767,-5000.0,4.212e-05,2]
[407960398,1772934638777,-201.36222107,4.298e-05,2]
[407960400,1772934638787,-271.799359,4.341e-05,2]
[407960402,1772934638796,-300.0,4.406e-05,2]
[407960404,1772934638805,-1171.03,4.407e-05,2]
[407960406,1772934638815,-538.86,4.407e-05,2]
[407960408,1772934638824,-734.0,4.407e-05,2]
[407960410,1772934638833,-208.937,4.407e-05,2]
[407960411,1772934638842,-271.799359,4.524e-05,2]
[407960414,1772934638852,-511.92144633,4.7e-05,2]
[407960416,1772934638861,-271.799359,4.707e-05,2]
[407960418,1772934638870,-57132.49241768,4.8e-05,2]
[407960888,1772934643563,-595.98029188,4.8e-05,2]
[407960901,1772934643671,-652.25,4.8e-05,2]
[407961177,1772934646502,-35250.0,4.8e-05,2]
[407961179,1772934646514,-336.0,4.8e-05,2]
[407961936,1772935831556,-285.66324271,3.675e-05,2]
[407961943,1772935831611,-4714.33675729,3.675e-05,2]
[407961945,1772935831620,-202.71320828,3.792e-05,2]
[407961947,1772935831629,-2830.12402234,3.903e-05,2]
[407962121,1772935837695,-74.40669376,3.903e-05,2]
[407962122,1772935837705,-6739.06193393,4.5e-05,2]
[407962123,1772935837715,-7495.67189842,4.5e-05,2]
[407962124,1772935837723,-8252.28186298,4.5e-05,2]
[407962125,1772935837733,-1270.93959441,4.5e-05,2]
[407962126,1772935837745,-1845.60097716,4.5e-05,2]
[407962127,1772935837756,-274.04979742,4.5e-05,2]
[407962128,1772935837778,-1914.2581132,4.5e-05,2]
[407962139,1772935840250,-2448.20888545,4.5e-05,2]
[407962140,1772935840305,-889.42,4.5e-05,2]
[407962155,1772935842778,-2198.36996443,4.5e-05,2]
[407962156,1772935842787,-678.25080862,4.554e-05,2]
[407962165,1772935845666,-3462.27407953,4.554e-05,2]
[407962167,1772936402516,155.5,2e-05,2]
[407962168,1772936402784,155.5,2e-05,2]
[407962169,1772936403082,155.5,2e-05,2]
[407962170,1772936403393,155.5,2e-05,2]
[407962171,1772936403665,155.5,2e-05,2]
[407962172,1772936404024,155.5,2e-05,2]
[407962173,1772936405386,155.5,2e-05,2]
[407962174,1772936405421,155.5,2e-05,2]
[407962175,1772936405489,155.5,2e-05,2]
[407962176,1772936405538,155.5,2e-05,2]
[407962177,1772936405579,155.5,2e-05,2]
[407962178,1772936405877,155.5,2e-05,2]
[407962179,1772936406161,155.5,2e-05,2]
[407962180,1772936406457,155.5,2e-05,2]
[407962181,1772936406736,155.5,2e-05,2]
[407962182,1772936407015,155.5,2e-05,2]
[407962183,1772936407345,155.5,2e-05,2]
[407962184,1772936407644,155.5,2e-05,2]
[407962185,1772936408091,155.5,2e-05,2]
[407962186,1772936408809,155.5,2e-05,2]
[407962187,1772936409150,155.5,2e-05,2]
[407962188,1772936409438,155.5,2e-05,2]
[407962189,1772936409729,155.5,2e-05,2]
[407962190,1772936410072,155.5,2e-05,2]
[407962191,1772936410437,155.5,2e-05,2]
[407962192,1772936410760,155.5,2e-05,2]
[407962193,1772936411085,155.5,2e-05,2]
[407962194,1772936411358,155.5,2e-05,2]
[407962195,1772936411637,155.5,2e-05,2]
[407962196,1772936411925,155.5,2e-05,2]
[407962197,1772936412212,155.5,2e-05,2]
[407962198,1772936412514,155.5,2e-05,2]
[407962199,1772936412789,155.5,2e-05,2]
[407962200,1772936413144,155.5,2e-05,2]
[407962201,1772936413416,155.5,2e-05,2]
[407962202,1772936413690,155.5,2e-05,2]
[407962203,1772936413956,155.5,2e-05,2]
[407962204,1772936414256,155.5,2e-05,2]
[407962205,1772936414523,155.5,2e-05,2]
[407962206,1772936414783,155.5,2e-05,2]
[407962207,1772936415243,155.5,2e-05,2]
[407962208,1772936416362,155.5,2e-05,2]
[407962209,1772936416439,155.5,2e-05,2]
[407962210,1772936416764,155.5,2e-05,2]
[407962211,1772936417058,155.5,2e-05,2]
[407962212,1772936417335,155.5,2e-05,2]
[407962213,1772936417617,155.5,2e-05,2]
[407962214,1772936417894,155.5,2e-05,2]
[407962215,1772936418195,155.5,2e-05,2]
[407962216,1772936418483,155.5,2e-05,2]
[407962218,1772936631473,10000.0,0.000114,120]
[407962219,1772936639707,10000.0,0.000114,120]
[407962246,1772937031759,-708.36065764,2.976e-05,2]
[407962252,1772937031814,-1107.3414549,2.976e-05,2]
[407962254,1772937031826,-1163.26236751,2.976e-05,2]
[407962283,1772937038010,-2021.03551995,2.976e-05,2]
[407962285,1772937038019,-218.0726415,3.044e-05,2]
[407962286,1772937038029,-300.0,3.098e-05,2]
[407962287,1772937038039,-300.0,3.098e-05,2]
[407962288,1772937038048,-1200.0,3.098e-05,2]
[407962289,1772937038058,-35860.9651214,3.099e-05,2]
[407962290,1772937038068,-300.0,3.16e-05,2]
[407962291,1772937038078,-300.0,3.16e-05,2]
[407962292,1772937038088,-300.0,3.16e-05,2]
[407962293,1772937038097,-300.0,3.16e-05,2]
[407962294,1772937038106,-300.0,3.16e-05,2]
[407962295,1772937038116,-300.0,3.16e-05,2]
[407962296,1772937038125,-300.0,3.16e-05,2]
[407962297,1772937038135,-300.0,3.16e-05,2]
[407962298,1772937038144,-300.0,3.16e-05,2]
[407962299,1772937038154,-300.0,3.16e-05,2]
[407962300,1772937038165,-300.0,3.16e-05,2]
[407962301,1772937038174,-300.0,3.16e-05,2]
[407962302,1772937038183,-300.0,3.16e-05,2]
[407962303,1772937038195,-300.0,3.16e-05,2]
[407962304,1772937038206,-300.0,3.16e-05,2]
[407962305,1772937038215,-420.0,3.408e-05,2]
[407962306,1772937038225,-921.0,3.408e-05,2]
[407962307,1772937038234,-266.691,3.576e-05,2]
[407962308,1772937038243,-209.00854989,3.612e-05,2]
[407962309,1772937038253,-587.0,3.749e-05,2]
[407962310,1772937038262,-600.0,3.792e-05,2]